Cogmind - Beta 13 @@@ ROGUE MODE // 2024.04.08 @ 21:56:47 Player: BoomBlip Result: Destroyed by S-43 Plague with Heavy Machine Gun Performance ------------- Evolutions (7) 3500 Regions Visited (17) 3400 Robots Destroyed (102) 510 Value Destroyed (3351) 3351 Prototype IDs (19) 380 Alien Tech Used (0) 0 Bonus (2019) 2019 TOTAL SCORE: 13160 Bonus ------- Pacifist 200 High Alert Combat Kills 354 Follower Combat Kills 887 Entered Garrisons 200 Used RIF Installer 500 Met Data Miner 300 Friendly Fire -422 Cogmind --------- Core Integrity 0/1300 Matter 170/300 Energy 100/100 System Corruption 2% Temperature Cool (0) Movement Core (50) Location -3/Research Parts ------- > --- POWER (2) -------- (None) > --- PROPULSION (5) --- (None) > --- UTILITY (10) ----- (None) > --- WEAPON (4) ------- (None) > --- INVENTORY (5) ---- Light Antimatter Reactor Micro Antimatter Reactor Xenon Bombardment Thruster Heavy Machine Gun Great Maul Peak State ------------ > --- POWER ------------ Improved Deuterium Engine Light Antimatter Reactor > --- PROPULSION ------- Improved Treads Medium Treads Improved Medium Treads > --- UTILITY ---------- Advanced Heat Sink Advanced Heat Sink Humpback Improved Targeting Computer Core Analyzer Improved Weapon Cycler ECM Suite Improved Thermal Shield > --- WEAPON ----------- Wave Gun HERF Cannon Light Assault Rifle > --- INVENTORY -------- Light Nuclear Core Improved Deuterium Engine Improved Deuterium Engine Signal Interpreter Tesla Rifle Tesla Rifle Advanced Beam Rifle Long-range Proton Cannon Heavy Assault Rifle Heavy Battle Rifle Heavy Machine Gun Improved Heavy Machine Gun Rocket Launcher Great Maul [Rating: 72] Favorites ----------- Power Improved Deuterium Engine Engine Improved Deuterium Engine Power Core Light Nuclear Core Reactor Light Antimatter Reactor Propulsion Improved Medium Treads Treads Improved Medium Treads Leg Aluminum Leg Wheel Wheel Flight Unit Xenon Bombardment Thruster Utility Advanced Heat Sink Device Advanced Heat Sink Storage Large Storage Unit Processor Improved Targeting Computer Hackware Hacking Suite Protection Light Armor Plating Weapon Improved Heavy Machine Gun Energy Gun Heavy Particle Gun Energy Cannon Beam Cannon Ballistic Gun Improved Heavy Machine Gun Ballistic Cannon Assault Cannon Launcher Rocket Launcher Impact Weapon Great Maul Build | -11 -10 -9 -9 -8 -8 -8 -8 -6 -6 -6 -6 -5 -5 -4 -4 -4 -3 ------- Run | Yrd Mat Mat Min Mat Sto Gar Rec Fac Low Low Dat Pro Fac Fac Was Fac Res Slots Evolved 14 | . . 2 . 2 . . . 4 . . . . 2 2 . . 2 Power 1 | . . . . . . . . . . . . . 1 . . . . Propulsion 3 | . . . . . . . . 1 . . . . 1 . . . 1 Utility 8 | . . 1 . 2 . . . 3 . . . . . 2 . . . Weapon 2 | . . 1 . . . . . . . . . . . . . . 1 Parts Attached 149 | . 2 7 6 2 33 14 5 12 13 8 . 3 2 12 4 8 18 Power 18 | . . 1 . . 3 1 . 2 1 . . . 1 2 . 2 5 Engine 9 | . . 1 . . 3 1 . 2 1 . . . 1 . . . . Core 2 | . . . . . . . . . . . . . . . . 2 . Reactor 7 | . . . . . . . . . . . . . . 2 . . 5 Propulsion 44 | . 2 . 4 . 4 4 2 4 4 2 . 1 1 5 . 2 9 Treads 18 | . . . . . . 3 2 4 4 2 . 1 1 . . 1 . Leg . | . . . . . . . . . . . . . . . . . . Wheel 17 | . 2 . 4 . 4 1 . . . . . . . 5 . 1 . Hover . | . . . . . . . . . . . . . . . . . . Flight 9 | . . . . . . . . . . . . . . . . . 9 Utility 37 | . . 4 1 2 6 5 2 2 5 4 . . . 3 . 2 1 Device 16 | . . 2 1 . 3 1 . 1 4 1 . . . 2 . 1 . Storage 5 | . . 1 . . 1 . 1 1 . 1 . . . . . . . Processor 3 | . . . . 1 . . . . . 1 . . . 1 . . . Hackware 1 | . . . . . . . . . . . . . . . . . 1 Protection 12 | . . 1 . 1 2 4 1 . 1 1 . . . . . 1 . Artifact . | . . . . . . . . . . . . . . . . . . Weapon 50 | . . 2 1 . 20 4 1 4 3 2 . 2 . 2 4 2 3 Energy Gun 13 | . . 1 . . 8 1 . 1 1 . . 1 . . . . . Energy Cannon 7 | . . 1 . . 1 . . . 1 . . 1 . 1 1 1 . Ballistic Gun 22 | . . . 1 . 6 3 1 3 1 2 . . . 1 1 1 2 Ballistic Cannon 3 | . . . . . 3 . . . . . . . . . . . . Launcher 3 | . . . . . 2 . . . . . . . . . 1 . . Special Weapon . | . . . . . . . . . . . . . . . . . . Impact Weapon 2 | . . . . . . . . . . . . . . . 1 . 1 Slashing Weapon . | . . . . . . . . . . . . . . . . . . Piercing Weapon . | . . . . . . . . . . . . . . . . . . Special Melee Weapon . | . . . . . . . . . . . . . . . . . . Unidentified Prototypes 9 | . . . . . 8 . . 1 . . . . . . . . . Corrupted Parts 9 | . . . . . . . . . . . . 2 . 4 . 1 2 System Corruption 33 | . . . . . . . . . . . . 8 . 13 . 10 2 Parts Lost 32 | . . . . . 1 4 1 2 4 3 . 2 2 1 5 . 7 Power 4 | . . . . . . . . 1 . . . . . . 2 . 1 Propulsion 12 | . . . . . . 2 . . 2 2 . . 1 1 . . 4 Utility 7 | . . . . . 1 1 . 1 1 1 . 1 1 . . . . Weapon 9 | . . . . . . 1 1 . 1 . . 1 . . 3 . 2 Highest Loss Streak 5 | . . . . . 1 2 1 2 2 2 . 2 2 1 5 . 4 To Critical Strikes 1 | . . . . . . . . . . . . . . . . . 1 Average Slot Usage (%) 87 | . 85 90 100 100 99 98 99 78 90 93 93 89 86 77 52 26 34 Engine 7 | . 14 11 11 9 9 9 9 5 6 6 6 6 10 5 . . . Treads 11 | . . . . . . 13 18 20 19 15 20 20 22 11 . 3 1 Wheel 5 | . 6 22 22 18 18 3 . . . . . . . 3 12 4 . Device 18 | . . 7 11 9 9 15 18 14 27 31 26 26 22 21 16 . 1 Storage 10 | . 14 11 11 9 15 18 18 13 13 7 6 6 5 5 3 . . Processor 3 | . . . . 9 9 2 . . . 4 6 6 5 7 6 . . Protection 5 | . . 4 11 18 11 8 9 3 2 5 6 2 . . . . . Energy Gun 5 | . . . . . 12 14 9 6 5 . . . 5 5 2 . . Energy Cannon 3 | . . 10 11 9 4 3 . . 3 . . 2 . 4 1 5 . Ballistic Gun 12 | . 28 22 22 18 6 5 16 13 8 19 20 16 11 5 2 5 3 Naked Turns 91 | . . . . . . . . . . . . . . . 34 3 54 Heaviest Build 250 | 11 11 39 39 42 50 50 48 53 58 226 226 228 234 250 250 38 41 Greatest Support 109 | 20 20 20 26 20 20 40 40 90 90 90 86 86 109 81 52 23 32 Greatest Overweight (x) 24 | . . 1 1 2 4 4 1 . 1 2 2 2 2 24 4 1 3 Average Overweight (x) . | . . . 1 2 2 1 1 . . . 2 2 2 3 . . . Largest Inventory Capacity 35 | 8 8 15 15 15 15 15 15 15 15 35 35 35 35 35 35 5 5 Average Capacity 18 | 8 8 13 15 15 15 15 15 15 15 19 35 35 35 35 23 5 5 Most Carried 15 | 6 8 15 15 14 15 15 15 15 15 15 13 13 12 15 15 5 5 Average Carried 13 | 6 6 10 15 13 14 14 15 14 14 14 13 12 11 13 10 1 4 Final Capacity 35 | 8 8 15 15 15 15 15 15 15 15 35 35 35 35 35 5 5 5 Final Carried 15 | 6 8 15 15 13 15 15 15 15 15 13 13 13 11 15 5 2 5 Class Distribution -------------------- 31% | Scavenger-Tank 26% | Scavenger-Gunner 16% | Hauler-Gunner 7% | Tank 5% | Scavenger-Mutant 5% | Commander-Tank 3% | Mutant Dominant Class ---------------- Mutant | -10/Materials Gunner | -9/Materials Scavenger-Tank | -9/Mines Scavenger-Tank | -8/Materials Scavenger-Tank | -8/Storage Scavenger-Tank | -8/Garrison Scavenger-Tank | -8/Recycling Scavenger-Tank | -6/Factory Scavenger-Gunner | -6/Lower Caves Scavenger-Gunner | -6/Lower Caves Hauler-Gunner | -6/Data Miner Hauler-Gunner | -5/Proximity Caves Scavenger-Gunner | -5/Factory Hauler-Gunner | -4/Factory Mutant | -4/Waste Scavenger-Mutant | -4/Factory Scavenger-Mutant | -3/Research Resources | -11 -10 -9 -9 -8 -8 -8 -8 -6 -6 -6 -6 -5 -5 -4 -4 -4 -3 ----------- Run | Yrd Mat Mat Min Mat Sto Gar Rec Fac Low Low Dat Pro Fac Fac Was Fac Res Matter Collected 3119 | 200 . 142 164 . 667 407 74 230 437 234 . 87 . 173 . 90 214 Remotely . | . . . . . . . . . . . . . . . . . . Salvage Created 4509 | . . 304 321 . 939 636 228 397 531 328 . 188 . 351 . 90 196 Parts 226 | . . 21 26 . 46 38 8 10 13 18 . 10 . 19 . 3 14 Haulers Intercepted 4 | . . . . . 4 . . . . . . . . . . . . Recyclers Shooed 1 | . . . . . . . . . . . . . . 1 . . . Parts Field Recycled . | . . . . . . . . . . . . . . . . . . Retrieved Matter . | . . . . . . . . . . . . . . . . . . Parts Self-Destructed 32 | . . . . . . . . . 9 15 . 8 . . . . . Prevented 6 | . . . . . . . . . 3 1 . 2 . . . . . Kills | -11 -10 -9 -9 -8 -8 -8 -8 -6 -6 -6 -6 -5 -5 -4 -4 -4 -3 ------- Run | Yrd Mat Mat Min Mat Sto Gar Rec Fac Low Low Dat Pro Fac Fac Was Fac Res Combat Hostiles Destroyed 79 | . . 5 7 . 9 21 2 6 9 8 . 3 . 3 . 1 5 Guns 54 | . . 3 1 . 8 15 2 6 6 7 . 1 . 2 . . 3 Cannons 22 | . . 2 6 . 1 6 . . 2 . . 2 . 1 . . 2 AOE 1 | . . . . . . . . . . 1 . . . . . . . Classes Destroyed 13 | . . 5 2 . 2 . . 1 1 1 . 1 . . . . . Worker 3 | . . . . . 2 . . . . . . . . . . . 1 Builder 3 | . . . 1 . 1 . . . . . . . . 1 . . . Tunneler 2 | . . . 2 . . . . . . . . . . . . . . Hauler 4 | . . . . . 4 . . . . . . . . . . . . Recycler 7 | . . 1 1 . 2 . 2 . . . . . . 1 . . . Mechanic 1 | . . . . . . . . 1 . . . . . . . . . Watcher 1 | . . 1 . . . . . . . . . . . . . . . Swarmer 27 | . . 2 4 . . 12 . . . 4 . . . . . . 5 Grunt 31 | . . 1 3 . 9 5 . 4 5 3 . . . 1 . . . Brawler 2 | . . . . . . . . . 2 . . . . . . . . Sentry 16 | . . 2 . . 2 4 2 2 2 . . 1 . . . 1 . Hunter 2 | . . . . . . . . . . . . 2 . . . . . Programmer 3 | . . . . . . . . . . 1 . . . 2 . . . Best Kill Streak 8 | . . 4 8 . 3 5 2 5 5 4 . 2 . 2 . 1 4 Combat Bots Only 5 | . . 3 4 . 2 5 1 4 5 4 . 2 . 1 . 1 3 Max Kills in Single Turn 2 | . . 1 1 . 2 1 1 2 1 1 . 1 . 1 . 1 1 Gunslinging . | . . . . . . . . . . . . . . . . . . Exploded 1 | . . . . . . . . . . 1 . . . . . . . Melee . | . . . . . . . . . . . . . . . . . . Uniques/NPCs Destroyed . | . . . . . . . . . . . . . . . . . . Combat | -11 -10 -9 -9 -8 -8 -8 -8 -6 -6 -6 -6 -5 -5 -4 -4 -4 -3 -------- Run | Yrd Mat Mat Min Mat Sto Gar Rec Fac Low Low Dat Pro Fac Fac Was Fac Res Hostile Shots Fired 709 | . . 11 34 . 39 153 4 119 87 42 . 26 10 21 7 5 151 Missed 207 | . . 3 6 . 12 31 1 38 26 13 . 6 3 7 . 1 60 Damage Taken 8424 | . . 94 289 . 576 1247 46 929 1174 564 . 369 171 269 392 94 2210 Core 2384 | . . 7 57 . 193 153 . 76 147 78 . 33 28 62 138 94 1318 Absorbed by Shields . | . . . . . . . . . . . . . . . . . . Ignored by Resistances 15 | . . . . . . . . . . . . . . 15 . . . Core Remaining (%) 78 | 100 100 . 84 . . . 37 . . . . 60 97 . . 74 . Volleys Fired 348 | . . 13 26 . 123 42 5 31 35 18 . 10 . 16 9 3 17 Largest 3 | . . 3 3 . 3 3 3 3 3 3 . 3 . 3 3 2 2 Hottest 198 | . . 100 100 . 198 167 121 121 157 157 . 134 . 192 192 108 118 Shots Fired 871 | . . 39 78 . 249 114 13 93 96 58 . 29 . 49 24 6 23 Gun 609 | . . 26 52 . 112 80 13 93 85 54 . 25 . 33 16 3 17 Cannon 246 | . . 13 26 . 124 34 . . 11 4 . 4 . 16 5 3 6 Launcher 16 | . . . . . 13 . . . . . . . . . 3 . . Special . | . . . . . . . . . . . . . . . . . . Kinetic 435 | . . 26 52 . 79 37 8 62 52 50 . 25 . 17 7 3 17 Thermal 371 | . . 13 26 . 157 77 5 31 33 4 . . . 16 9 . . Explosive 16 | . . . . . 13 . . . . . . . . . 3 . . Electromagnetic 49 | . . . . . . . . . 11 4 . 4 . 16 5 3 6 Robot Hit Streak 22 | . . 11 8 . 13 19 9 22 18 8 . 10 . 11 12 18 22 Robot Miss Streak 11 | . . 3 4 . 6 11 . 8 1 2 . 2 . 2 1 . 2 Penetration Max . | . . . . . . . . . . . . . . . . . . Secondary Targets 11 | . . . . . 1 5 . . 4 1 . . . . . . . Max Gunslinging Chain 1 | . . . . . 1 1 . . 1 1 . . . . . . . Shots Hit Robots 440 | . . 24 32 . 58 54 8 60 65 38 . 21 . 35 24 6 15 Core Hits 189 | . . 11 14 . 33 27 5 24 21 19 . 10 . 12 4 . 9 Critical Kills . | . . . . . . . . . . . . . . . . . . Critical Parts Destroyed . | . . . . . . . . . . . . . . . . . . Critical Strikes 11 | . . . . . 2 3 1 1 4 . . . . . . . . Burn 11 | . . . . . 2 3 1 1 4 . . . . . . . . Melee Attacks 2 | . . . . . . . . . . . . . . . 1 . 1 Impact 2 | . . . . . . . . . . . . . . . 1 . 1 Slashing . | . . . . . . . . . . . . . . . . . . Piercing . | . . . . . . . . . . . . . . . . . . Sneak Attacks . | . . . . . . . . . . . . . . . . . . Combat Hostiles . | . . . . . . . . . . . . . . . . . . Follow-up Attacks . | . . . . . . . . . . . . . . . . . . Damage Inflicted 9062 | . . 339 476 . 1302 1018 155 1133 1471 931 . 355 . 806 558 120 398 Guns 6393 | . . 129 195 . 943 729 155 1118 1270 544 . 227 . 483 307 23 270 Cannons 2027 | . . 210 277 . 215 289 . . 201 144 . 128 . 323 15 97 128 Explosions 582 | . . . . . 139 . . . . 243 . . . . 200 . . Melee 30 | . . . . . . . . . . . . . . . 30 . . Ramming 30 | . . . 4 . 5 . . 15 . . . . . . 6 . . Kinetic 3615 | . . 129 195 . 289 279 50 637 773 504 . 227 . 146 93 23 270 Thermal 4012 | . . 210 277 . 869 739 105 481 497 283 . . . 337 214 . . Explosive 339 | . . . . . 139 . . . . . . . . . 200 . . Electromagnetic 1036 | . . . . . . . . . 201 144 . 128 . 323 15 97 128 Impact 30 | . . . . . . . . . . . . . . . 30 . . Slashing . | . . . . . . . . . . . . . . . . . . Piercing . | . . . . . . . . . . . . . . . . . . Highest Corruption 28 | . . . . . . . . 2 2 3 3 11 . 18 18 28 2 Average Corruption 4 | . . . . . . . . 2 2 2 3 3 . 9 18 25 1 Corruption Purged . | . . . . . . . . . . . . . . . . . . Corruption Blocked . | . . . . . . . . . . . . . . . . . . Effects 78 | . . . . . . . . 5 19 22 5 7 . 5 3 7 5 Message Errors 21 | . . . . . . . . 2 8 4 2 2 . 1 . 1 1 Matter Fused 18 | . . . . . . . . 2 4 4 1 1 . 1 1 2 2 Heat Flow Errors 10 | . . . . . . . . . . 4 1 1 . . 1 2 1 Energy Discharges 8 | . . . . . . . . 1 1 3 . 1 . . . 1 1 Data Loss (minor) 10 | . . . . . . . . . 3 3 . 1 . 2 . 1 . Data Loss (major) 4 | . . . . . . . . . 2 . 1 1 . . . . . Misfires 6 | . . . . . . . . . 1 4 . . . 1 . . . Misdirections 1 | . . . . . . . . . . . . . . . 1 . . Overload Shots . | . . . . . . . . . . . . . . . . . . Overflow Damage 12 | . . . . . 6 1 . . . 5 . . . . . . . Projectiles 1 | . . . . . . 1 . . . . . . . . . . . Explosions 11 | . . . . . 6 . . . . 5 . . . . . . . Melee . | . . . . . . . . . . . . . . . . . . Knockbacks 1 | . . . . . . 1 . . . . . . . . . . . Impact . | . . . . . . . . . . . . . . . . . . Kinetic 1 | . . . . . . 1 . . . . . . . . . . . Secondary . | . . . . . . . . . . . . . . . . . . Self-Inflicted Damage 148 | . . . 2 . 21 . . . . 36 . . . . 89 . . Shots 4 | . . . . . 1 . . . . 1 . . . . 2 . . Rammed 6 | . . . 1 . 3 . . 1 . . . . . . 1 . . Targets Rammed 6 | . . . 1 . 3 . . 1 . . . . . . 1 . . Kicked . | . . . . . . . . . . . . . . . . . . Crushed . | . . . . . . . . . . . . . . . . . . Highest Temperature 630 | . . 132 99 . 630 414 . 3 54 171 82 201 . 174 138 181 149 Average Temperature 71 | . . 45 27 . 87 116 . 3 16 81 41 116 . 74 50 64 40 Received Heat Transfer 1626 | . . 24 84 . 189 306 18 345 339 213 . 18 18 18 . 9 45 Effects 11 | . . . . . 8 3 . . . . . . . . . . . Shutdowns 1 | . . . . . 1 . . . . . . . . . . . . Energy Bleed 1 | . . . . . 1 . . . . . . . . . . . . Interference 3 | . . . . . 1 2 . . . . . . . . . . . Matter Decay 1 | . . . . . 1 . . . . . . . . . . . . Short Circuit 1 | . . . . . . 1 . . . . . . . . . . . Damage (major) 3 | . . . . . 3 . . . . . . . . . . . . Damage (core) 1 | . . . . . 1 . . . . . . . . . . . . Siege Activations . | . . . . . . . . . . . . . . . . . . Robots Corrupted 1 | . . . . . . . . . . . . . . . . 1 . Combat Hostiles 1 | . . . . . . . . . . . . . . . . 1 . Parts Fried 4 | . . . . . . . . . . . . 1 . 2 . 1 . Impact Corruptions . | . . . . . . . . . . . . . . . . . . Robots Melted 1 | . . . . . . . . . 1 . . . . . . . . Combat Hostiles 1 | . . . . . . . . . 1 . . . . . . . . Parts Melted 10 | . . . . . 1 4 . 3 1 . . . . 1 . . . Heat Transferred 8031 | . . 444 592 . 1887 1628 259 999 1221 224 . . . 444 333 . . Parts Sabotaged . | . . . . . . . . . . . . . . . . . . Parts Stolen . | . . . . . . . . . . . . . . . . . . Parts Stripped . | . . . . . . . . . . . . . . . . . . Power Chain Reactions 1 | . . . . . . . . . . 1 . . . . . . . Alert | -11 -10 -9 -9 -8 -8 -8 -8 -6 -6 -6 -6 -5 -5 -4 -4 -4 -3 ------- Run | Yrd Mat Mat Min Mat Sto Gar Rec Fac Low Low Dat Pro Fac Fac Was Fac Res Peak Influence 1004 | . . 206 314 10 995 1004 491 272 . . . . 15 70 54 58 394 Initial 564 | . . . 79 10 3 564 451 121 . . . . . . 24 13 30 Average 355 | . . 86 212 10 658 831 474 151 . . . . . 14 20 52 174 Maximum Alert Level 3 | . . 1 1 . 3 3 2 1 . . . . . . . . 1 Low Security (%) 48 | 100 100 94 57 100 10 . . 73 . . . . 100 100 100 100 70 Level 1 13 | . . 5 42 . 10 . 2 26 . . . . . . . . 29 Level 2 14 | . . . . . 21 17 97 . . . . . . . . . . Level 3 23 | . . . . . 57 82 . . . . . . . . . . . Level 4 . | . . . . . . . . . . . . . . . . . . Level 5 . | . . . . . . . . . . . . . . . . . . High Security . | . . . . . . . . . . . . . . . . . . Max Security . | . . . . . . . . . . . . . . . . . . Squads Dispatched 16 | . . 1 1 . 7 . . . . . . . . 3 . . 4 Investigation 6 | . . . . . 3 . . . . . . . . . . . 3 Extermination 3 | . . . . . . . . . . . . . . 2 . . 1 Reinforcement 3 | . . 1 . . 1 . . . . . . . . 1 . . . Assault 1 | . . . 1 . . . . . . . . . . . . . . Garrison 3 | . . . . . 3 . . . . . . . . . . . . Intercept . | . . . . . . . . . . . . . . . . . . Searches Triggered . | . . . . . . . . . . . . . . . . . . Data Miner Redirects 1 | . . . . . . . . . . . . . . . . . 1 Construction Impeded . | . . . . . . . . . . . . . . . . . . Haulers Reinforced 1 | . . . . . . . . . . . . . . 1 . . . Active Scanning Responses . | . . . . . . . . . . . . . . . . . . Cargo Convoy Interrupts . | . . . . . . . . . . . . . . . . . . Stealth | -11 -10 -9 -9 -8 -8 -8 -8 -6 -6 -6 -6 -5 -5 -4 -4 -4 -3 --------- Run | Yrd Mat Mat Min Mat Sto Gar Rec Fac Low Low Dat Pro Fac Fac Was Fac Res Distress Signals 4 | . . . . . 3 . . . . . . . . . . . 1 Communications Jammed . | . . . . . . . . . . . . . . . . . . Distress Signals . | . . . . . . . . . . . . . . . . . . Times Spotted 164 | . . 8 13 . 30 23 2 11 10 13 . 3 1 5 5 1 39 Peak Tracking Total 13 | . . 4 4 . 4 6 1 4 5 5 . 2 1 3 5 1 13 Tactical Retreats 18 | . . 2 2 . 1 1 . . 1 5 . . . . . . 6 Traps | -11 -10 -9 -9 -8 -8 -8 -8 -6 -6 -6 -6 -5 -5 -4 -4 -4 -3 ------- Run | Yrd Mat Mat Min Mat Sto Gar Rec Fac Low Low Dat Pro Fac Fac Was Fac Res Traps Triggered 8 | . . . . . 2 3 . 1 . . . . . 1 . . 1 Indirectly . | . . . . . . . . . . . . . . . . . . Trap Hack Attempts . | . . . . . . . . . . . . . . . . . . Triggered . | . . . . . . . . . . . . . . . . . . Disarmed . | . . . . . . . . . . . . . . . . . . Reprogrammed . | . . . . . . . . . . . . . . . . . . Reused . | . . . . . . . . . . . . . . . . . . Traps Extracted . | . . . . . . . . . . . . . . . . . . Installed . | . . . . . . . . . . . . . . . . . . Triggered 1 | . . . . . . . . . . . . 1 . . . . . Machines | -11 -10 -9 -9 -8 -8 -8 -8 -6 -6 -6 -6 -5 -5 -4 -4 -4 -3 ---------- Run | Yrd Mat Mat Min Mat Sto Gar Rec Fac Low Low Dat Pro Fac Fac Was Fac Res Machines Disabled 7 | . . . . . 4 . . . . . . . . 3 . . . Max in Single Turn 1 | . . . . . 1 . . . . . . . . 1 . . . Machines Repaired . | . . . . . . . . . . . . . . . . . . Machines Dismantled . | . . . . . . . . . . . . . . . . . . Machines Sabotaged . | . . . . . . . . . . . . . . . . . . Overloaded Fab Kills . | . . . . . . . . . . . . . . . . . . Hacking | -11 -10 -9 -9 -8 -8 -8 -8 -6 -6 -6 -6 -5 -5 -4 -4 -4 -3 --------- Run | Yrd Mat Mat Min Mat Sto Gar Rec Fac Low Low Dat Pro Fac Fac Was Fac Res Machines Accessed 26 | . . 1 . 1 8 1 . 2 1 . 4 . . 1 . 1 6 Terminals 18 | . . 1 . 1 6 1 . 1 . . . . . 1 . 1 6 Fabricators . | . . . . . . . . . . . . . . . . . . Repair Stations . | . . . . . . . . . . . . . . . . . . Recycling Units 2 | . . . . . 1 . . 1 . . . . . . . . . Scanalyzers . | . . . . . . . . . . . . . . . . . . Garrison Access 1 | . . . . . 1 . . . . . . . . . . . . Total Hacks 84 | . . 8 . 2 23 2 . 5 1 . 30 . . 1 . 3 9 Successful 49 | . . 2 . 1 11 . . 2 1 . 30 . . 1 . . 1 Failed 35 | . . 6 . 1 12 2 . 3 . . . . . . . 3 8 Catastrophic 11 | . . 1 . 1 4 . . . . . . . . . . . 5 Database Lockouts . | . . . . . . . . . . . . . . . . . . Manual 42 | . . 8 . 2 17 . . 4 . . . . . 1 . 3 7 Terminals 48 | . . 8 . 2 19 2 . 4 . . . . . 1 . 3 9 Fabricators . | . . . . . . . . . . . . . . . . . . Repair Stations . | . . . . . . . . . . . . . . . . . . Recycling Units 3 | . . . . . 2 . . 1 . . . . . . . . . Scanalyzers . | . . . . . . . . . . . . . . . . . . Garrison Access 2 | . . . . . 2 . . . . . . . . . . . . Terminal Hacks 40 | . . 1 . . 5 . . 1 1 . 30 . . 1 . . 1 Record 11 | . . . . . . . . . . . 11 . . . . . . Part Schematic 12 | . . . . . . . . . . . 12 . . . . . . Robot Schematic 4 | . . . . . . . . . . . 4 . . . . . . Prototype ID Bank 3 | . . . . . . . . . . . 3 . . . . . . Open Door 3 | . . . . . 2 . . . 1 . . . . . . . . Open DSF 2 | . . . . . . . . . . . . . . 1 . . 1 Branch Access Points 2 | . . 1 . . 1 . . . . . . . . . . . . Unreport Threat 3 | . . . . . 2 . . 1 . . . . . . . . . Fabricator Hacks . | . . . . . . . . . . . . . . . . . . Repair Station Hacks . | . . . . . . . . . . . . . . . . . . Recycling Unit Hacks 1 | . . . . . 1 . . . . . . . . . . . . Report Inventory 1 | . . . . . 1 . . . . . . . . . . . . Scanalyzer . | . . . . . . . . . . . . . . . . . . Garrison Access Hacks 1 | . . . . . 1 . . . . . . . . . . . . Unlock Access 1 | . . . . . 1 . . . . . . . . . . . . Unauthorized Hacks 7 | . . 1 . 1 4 . . 1 . . . . . . . . . Terminals 7 | . . 1 . 1 4 . . 1 . . . . . . . . . Botnet 7 | . . 1 . 1 4 . . 1 . . . . . . . . . Fabricators . | . . . . . . . . . . . . . . . . . . Repair Stations . | . . . . . . . . . . . . . . . . . . Recycling Units . | . . . . . . . . . . . . . . . . . . Scanalyzers . | . . . . . . . . . . . . . . . . . . Garrison Access . | . . . . . . . . . . . . . . . . . . Data Cores Recovered . | . . . . . . . . . . . . . . . . . . Used . | . . . . . . . . . . . . . . . . . . Hacking Detections 19 | . . 1 . 1 7 1 . 2 . . . . . 1 . 1 5 Full Trace Events 6 | . . . . . 3 . . . . . . . . . . . 3 Feedback Events . | . . . . . . . . . . . . . . . . . . Feedback Blocked . | . . . . . . . . . . . . . . . . . . Robot Schematics Acquired 4 | . . . . . . . . . . . 4 . . . . . . Robots Built . | . . . . . . . . . . . . . . . . . . Authchips . | . . . . . . . . . . . . . . . . . . Time . | . . . . . . . . . . . . . . . . . . Total Robot Build Rating . | . . . . . . . . . . . . . . . . . . Part Schematics Acquired 12 | . . . . . . . . . . . 12 . . . . . . Parts Built . | . . . . . . . . . . . . . . . . . . Authchips . | . . . . . . . . . . . . . . . . . . Time . | . . . . . . . . . . . . . . . . . . Total Part Build Rating . | . . . . . . . . . . . . . . . . . . Parts Repaired . | . . . . . . . . . . . . . . . . . . Time . | . . . . . . . . . . . . . . . . . . Parts Recycled . | . . . . . . . . . . . . . . . . . . Recycled Matter . | . . . . . . . . . . . . . . . . . . Retrieved Matter . | . . . . . . . . . . . . . . . . . . Retrieved Components . | . . . . . . . . . . . . . . . . . . Parts Scanalyzed . | . . . . . . . . . . . . . . . . . . Part Schematics Acquired . | . . . . . . . . . . . . . . . . . . Parts Damaged . | . . . . . . . . . . . . . . . . . . Bothacking | -11 -10 -9 -9 -8 -8 -8 -8 -6 -6 -6 -6 -5 -5 -4 -4 -4 -3 ------------ Run | Yrd Mat Mat Min Mat Sto Gar Rec Fac Low Low Dat Pro Fac Fac Was Fac Res Used RIF Installer 1 | . . . . . . 1 . . . . . . . . . . . Robots Hacked . | . . . . . . . . . . . . . . . . . . Non-combat . | . . . . . . . . . . . . . . . . . . Combat . | . . . . . . . . . . . . . . . . . . Robot Hacks Applied . | . . . . . . . . . . . . . . . . . . Relay Couplers Released . | . . . . . . . . . . . . . . . . . . Fabnet Peak Effective % . | . . . . . . . . . . . . . . . . . . Robots Rewired . | . . . . . . . . . . . . . . . . . . Allies Hacked . | . . . . . . . . . . . . . . . . . . Hacks Repelled . | . . . . . . . . . . . . . . . . . . Allies | -11 -10 -9 -9 -8 -8 -8 -8 -6 -6 -6 -6 -5 -5 -4 -4 -4 -3 -------- Run | Yrd Mat Mat Min Mat Sto Gar Rec Fac Low Low Dat Pro Fac Fac Was Fac Res Total Allies 17 | . . . 4 . 13 . . . . . . . . . . . . Largest Group 14 | . . . 4 4 14 1 . . . . . . . . . . . Highest-Rated Group 297 | . . . 71 71 297 29 . . . . . . . . . . . Highest-Rated Ally 31 | . . . 31 31 31 29 . . . . . . . . . . . Total Orders . | . . . . . . . . . . . . . . . . . . Ally Attacks 176 | . . . 10 . 161 5 . . . . . . . . . . . Total Damage 2576 | . . . 138 . 2383 55 . . . . . . . . . . . Kills 30 | . . . 2 . 28 . . . . . . . . . . . . Allies Corrupted 1 | . . . . . 1 . . . . . . . . . . . . Allies Melted . | . . . . . . . . . . . . . . . . . . Intel | -11 -10 -9 -9 -8 -8 -8 -8 -6 -6 -6 -6 -5 -5 -4 -4 -4 -3 ------- Run | Yrd Mat Mat Min Mat Sto Gar Rec Fac Low Low Dat Pro Fac Fac Was Fac Res Robot Analysis Total . | . . . . . . . . . . . . . . . . . . Derelict Logs Recovered 5 | . . . 1 . . . . . 3 1 . . . . . . . Drone Launches . | . . . . . . . . . . . . . . . . . . Drone Recoveries . | . . . . . . . . . . . . . . . . . . Exploration | -11 -10 -9 -9 -8 -8 -8 -8 -6 -6 -6 -6 -5 -5 -4 -4 -4 -3 ------------- Run | Yrd Mat Mat Min Mat Sto Gar Rec Fac Low Low Dat Pro Fac Fac Was Fac Res Turns Passed 8620 | 2 131 199 812 23 1175 707 409 539 1494 984 256 477 191 528 86 183 424 Spaces Moved 5045 | 2 114 154 692 20 674 273 161 257 861 510 81 141 60 156 83 92 714 Core 180 | . . . . . . . . . . . . . . . 69 4 107 Treads 2462 | . . . . . . 185 161 257 861 510 81 141 60 100 . 85 21 Legs 78 | 2 76 . . . . . . . . . . . . . . . . Wheels 1739 | . 38 154 692 20 674 88 . . . . . . . 56 14 3 . Hover . | . . . . . . . . . . . . . . . . . . Flight 586 | . . . . . . . . . . . . . . . . . 586 Fastest Speed 28 | 120 80 80 95 110 95 110 240 160 160 160 320 320 320 150 50 50 28 Average Speed 144 | 120 106 90 98 110 112 201 240 160 160 183 320 320 320 300 66 155 48 Slowest Speed 480 | 120 120 95 105 110 140 320 240 160 240 320 320 320 320 480 150 240 300 Overloaded Moves . | . . . . . . . . . . . . . . . . . . Propulsion Burnouts . | . . . . . . . . . . . . . . . . . . Robots Hopped 6 | . . . . . . . . . . . . . . . . . 6 Cave-ins Triggered . | . . . . . . . . . . . . . . . . . . Exploration Rate (%) 36 | 2 23 18 90 4 68 36 33 7 87 71 68 39 2 6 81 4 19 Regions Visited 17 Branch Regions 7 Pre-discovered Areas 2 | . . . . . . . . . . 1 1 . . . . . . Known Exits Taken 5 | . . 1 . 1 1 . . . . . . 1 1 . . . . Unknown Exits Taken 9 | 1 1 . 1 . . . 1 1 1 1 1 . . . . 1 . Scrap Searched 7 | . . . 1 . . . . . 3 3 . . . . . . . Spaces Dug 1 | . . . . . 1 . . . . . . . . . . . . Terrain Destroyed 53 | . . . . . 26 . . . . 3 . . . . 24 . . Melee . | . . . . . . . . . . . . . . . . . . Projectile 2 | . . . . . 2 . . . . . . . . . . . . AOE 51 | . . . . . 24 . . . . 3 . . . . 24 . . Terrain Rammed . | . . . . . . . . . . . . . . . . . . Walls Destroyed . | . . . . . . . . . . . . . . . . . . Machines Disabled . | . . . . . . . . . . . . . . . . . . Actions | -11 -10 -9 -9 -8 -8 -8 -8 -6 -6 -6 -6 -5 -5 -4 -4 -4 -3 --------- Run | Yrd Mat Mat Min Mat Sto Gar Rec Fac Low Low Dat Pro Fac Fac Was Fac Res Total 5802 | 1 125 188 775 21 905 353 175 326 922 541 80 155 61 190 97 125 762 Wait 78 | . . 1 43 . 1 2 . 1 6 . . . . . . 22 2 Move 5018 | 1 113 153 691 19 673 271 160 257 860 509 80 140 59 156 82 91 703 Hop 5 | . . . . . . . . . . . . . . . . . 5 Pick Up 71 | . 6 8 1 . 22 8 . 10 5 1 . 1 . 2 . 1 6 Fast Attach 59 | . . 5 . . 11 2 1 4 5 4 . 1 . 9 . 4 13 Attach 29 | . 2 1 . 2 1 5 . 2 3 2 . 1 2 . 3 4 1 Detach 6 | . . 2 . . 4 . . . . . . . . . . . . Swap 61 | . . 1 6 . 21 7 4 6 5 2 . 1 . 3 1 . 4 Drop 112 | . 4 4 7 . 43 12 4 15 3 5 . 1 . 4 . . 10 Fire 348 | . . 13 26 . 123 42 5 31 35 18 . 10 . 16 9 3 17 Melee 2 | . . . . . . . . . . . . . . . 1 . 1 Ram 5 | . . . 1 . 3 . . . . . . . . . 1 . . Kick . | . . . . . . . . . . . . . . . . . . Crush . | . . . . . . . . . . . . . . . . . . Escape Stasis 4 | . . . . . . 4 . . . . . . . . . . . Rewire 4 | . . . . . 3 . 1 . . . . . . . . . . Trap . | . . . . . . . . . . . . . . . . . . Miscellaneous . | . . . . . . . . . . . . . . . . . . Route ------- -11/Scrapyard -10/Materials -9/Materials -9/Mines -8/Materials (discovered 2 exits: *Sto x2) -8/Storage (discovered 2 exits: Rec / Gar) -8/Garrison -8/Recycling -6/Factory -6/Lower Caves -6/Lower Caves (discovered 2 exits: *Fac / *Dat) -6/Data Miner -5/Proximity Caves -5/Factory (discovered 3 exits: *Fac x2 / [*Upp]) -4/Factory -4/Waste -4/Factory -3/Research History --------- Turn | Location | Event 1 | -11/Scrapyard | Discovered new exit (range 1) 3 | -11/Scrapyard | Entered Materials 78 | -10/Materials | Discovered new exit (range 16) 134 | -10/Materials | Entered another Materials area 134 | -9/Materials | Evolved 2 slots: Utility x1, Weapon x1 243 | -9/Materials | Identified exit to Mines 333 | -9/Materials | Entered Mines 445 | -9/Mines | Found a hidden stash of uninstalled traps 712 | -9/Mines | Assisted by bots powering up and referring to "LRC-V3" 729 | -9/Mines | Build established: Scavenger-Tank 1110 | -9/Mines | Discovered new exit (range 16) 1113 | -9/Mines | Met a Derelict testing a Signal Generator 1145 | -9/Mines | Entered Materials 1145 | -8/Materials | Accompanied by 4 allies 1145 | -8/Materials | Evolved 2 slots: Utility x2 1146 | -8/Materials | Identified exit to Storage 1163 | -8/Materials | Discovered exit to Storage (range 5) 1168 | -8/Materials | Entered Storage 1168 | -8/Storage | Accompanied by 2 allies 1278 | -8/Storage | Assisted by bots powering up and referring to "LRC-V3" 1300 | -8/Storage | Allied Derelicts emerged from ambush trap array 1625 | -8/Storage | Build established: Commander-Tank 1665 | -8/Storage | Garrison activated, responded to threat 1725 | -8/Storage | Lost 4 allies 1734 | -8/Storage | Identified exit to Recycling 1799 | -8/Storage | Lost 3 allies 2056 | -8/Storage | Build established: Scavenger-Tank 2342 | -8/Storage | Identified exit to Garrison 2343 | -8/Storage | Entered Garrison 2343 | -8/Garrison | Accompanied by 1 ally 2366 | -8/Garrison | Installed Relay Interface Framework 2448 | -8/Garrison | Triggered checkpoint 2616 | -8/Garrison | Triggered checkpoint 2636 | -8/Garrison | Core integrity fell below 50% 2714 | -8/Garrison | Triggered checkpoint 2768 | -8/Garrison | Triggered checkpoint 2898 | -8/Garrison | Discovered exit to Recycling (range 10) 2956 | -8/Garrison | Triggered checkpoint 3050 | -8/Garrison | Entered Recycling 3430 | -8/Recycling | Discovered new exit (range 5) 3459 | -8/Recycling | Entered Factory 3459 | -6/Factory | Evolved 4 slots: Propulsion x1, Utility x3 3962 | -6/Factory | Discovered new exit (range 16) 3998 | -6/Factory | Entered Lower Caves 4154 | -6/Lower Caves | Build established: Tank 4309 | -6/Lower Caves | Attracted the attention of an 0b10 outpost 4524 | -6/Lower Caves | Learned location of 1 exit from Factory 4665 | -6/Lower Caves | Build established: Scavenger-Gunner 4783 | -6/Lower Caves | Attracted the attention of an 0b10 checkpoint 4994 | -6/Lower Caves | Learned location of 1 exit from Proximity Caves 5029 | -6/Lower Caves | Encountered a Warlord checkpoint 5064 | -6/Lower Caves | Discovered new exit (range 11) 5492 | -6/Lower Caves | Entered another Lower Caves area 5492 | -6/Lower Caves | Discovered new exit (range 8) 5989 | -6/Lower Caves | Discovered new exit (range 14) 6476 | -6/Lower Caves | Entered Data Miner 6476 | -6/Data Miner | Discovered new exit (range 6) 6528 | -6/Data Miner | Build established: Hauler-Gunner 6537 | -6/Data Miner | Met Data Miner 6633 | -6/Data Miner | Learned location of Section 7 (-3) 6633 | -6/Data Miner | Acquired the access code to Warlord's prototype stash 6662 | -6/Data Miner | Received God Mode back door access code from Data Miner 6732 | -6/Data Miner | Entered Proximity Caves 6733 | -5/Proximity Caves | Identified exit to Factory 7078 | -5/Proximity Caves | Attracted the attention of an 0b10 checkpoint 7209 | -5/Proximity Caves | System corruption reached 10% 7209 | -5/Proximity Caves | Entered Factory 7209 | -5/Factory | Evolved 2 slots: Power x1, Propulsion x1 7210 | -5/Factory | Identified exit to Factory 7323 | -5/Factory | Discovered new exit (range 15) 7365 | -5/Factory | Discovered exit to Factory (range 11) 7400 | -5/Factory | Entered another Factory area 7400 | -4/Factory | Evolved 2 slots: Utility x2 7869 | -4/Factory | System corruption reached 10% 7928 | -4/Factory | Sucked down chute 7928 | -4/Factory | Entered Waste 7948 | -4/Waste | Spotted C-40 Crusher 7966 | -4/Waste | Crushed by Compactor (1 part destroyed, 1 dropped) 7969 | -4/Waste | Crushed by Compactor (1 part destroyed, 1 dropped) 7972 | -4/Waste | Crushed by Compactor (1 part destroyed, 2 dropped) 7975 | -4/Waste | Crushed by Compactor (1 part destroyed, 1 dropped) 7978 | -4/Waste | Crushed by Compactor (1 part destroyed, 1 dropped) 7980 | -4/Waste | Released all parts (9) 7999 | -4/Waste | Spotted C-40 Crusher 8000 | -4/Waste | Spotted C-40 Crusher 8006 | -4/Waste | Discovered new exit (range 16) 8006 | -4/Waste | Spotted C-40 Crusher 8007 | -4/Waste | Spotted C-40 Crusher 8009 | -4/Waste | Lost 5 parts (2p3w) 8014 | -4/Waste | Entered Factory 8172 | -4/Factory | Discovered new exit (range 12) 8197 | -4/Factory | Entered Research 8197 | -3/Research | Evolved 2 slots: Propulsion x1, Weapon x1 8294 | -3/Research | Lost 3 parts (1n2w) 8542 | -3/Research | Incoming investigation squad redirected 8567 | -3/Research | Released all parts (6) 8580 | -3/Research | Core integrity fell below 50% 8598 | -3/Research | Lost 4 parts (1p3n) 8600 | -3/Research | Core integrity fell below 20% 8621 | -3/Research | Destroyed by S-43 Plague with Heavy Machine Gun Last Messages --------------- 08559_ Xenon Bombardment Thruster destroyed. 08561_ U-05 Engineer builds a Door. 08563_ Q-thruster destroyed. 08565_ Xenon Bombardment Thruster destroyed. 08567_ System corrupted: Matter fused (-9). 08567_ Lgt. Particle Reactor destroyed. 08567_ Released Mic. Antimatter Reactor. 08567_ Released Xenon Bombardment Thruster. 08567_ Released Hvy. Machine Gun. 08567_ Released Xenon Bombardment Thruster. 08567_ Released Great Maul. 08567_ Released Hacking Suite. 08576_ K-01 Serf collects debris. 08577_ Penetrated by Slug. 08578_ Acquired 10 matter. 08578_ K-01 Serf collects debris. 08582_ Acquired 3 matter. 08588_ Acquired 5 matter. 08599_ U-05 Engineer builds a Door. 08611_ Slug penetrates Wall. Map ----- +----------------------------------------------------+ | ?????????????????????????????????????????????????? | | ?####????????????????????????????????????????????? | | ????????????????????????????????????????????? | | ?????????????????????????????????????????????? | | """ "???????????????????????????????????????????? | | """ """?????????????????????????????????????????? | | """ """ #??????????????????????????????????????? | | #??????????????????????????????????????? | | #??????????????????????????????????????? | | """ """????????????? ???????????????????????????? | | """ "?????????????? ????????????????????????? | | """ "?????????????+ ???????????????????????? | | ??????????????# ???????????????????????? | | ??????????????# ""??????????????????????? | | ######?????????????# """""???????????????????? | | ???????????????????# """""???????????????????? | | ???????????????????# ???????????????????? | | ???????????????????# s ????? "???????????? | | ???????????????????# ""??????????? | | ???????????????????# ss"""""" F??????????? | | ???????????######### ss """""" "???????????? | | ???????????# """""" "" ?????????? | | ???????????# ?????????? | | ???????????# ????????? | | ##????????# s ????????? | | ???????# ssss @ ????????? | | ?????#?????# ################# ????????? | | ?????# ???# ##+#?####???????????????????????????? | | ! # ??# #?? #???????????????????????????? | | # ## # #???????????????????????????? | | ?+ + #???????????????????????????? | | ????# ##/########????????????????????????????? | | ????# ??# ###????????????????????????????? | | ?????## ???# + #????????????????????????????? | | ??????? ???#* # #????????????????????????????? | | ??????# #??# # ####?????????????????????????? | | ??????# #??# !! / #?????????????????????????? | | ??????# #??# ! # #?????????????????????????? | | ??????# #??######## #?????????????????????????? | | ??????# #?????????# #?????????????????????????? | | ??????# #?????????# #?????????????????????????? | | ??????# ########### #?????????????????????????? | | ??????+ #?????????????????????????? | | ??????# ############## #?????????????????????????? | | ??????# #????????????? #?????????????????????????? | | ####### #????#???????? #?????????????????????????? | | #?? #?????????#?????????????????????????? | | # #???????????????????????????????????? | | + #???????????????????????????????????? | | # #???????????????????????????????????? | +----------------------------------------------------+ Best States ------------- Heat Dissipation 103 Coolant Potential 80 Energy Generation 37 Energy Capacity 480 Matter Stores 300 Matter Capacity 300 Sight Range 18 Terrain Scan Density 10 ECM Strength 1 Armor Coverage 600 Resistance: TH 25 Weapon Cycling 30 Evasion (%) 64 Targeting Accuracy 6 Core Analysis 6 Recoil Reduction 4 Offensive Hacking 10 Item Schematics ----------------- Combat Drone Bay | -6/Data Miner | Free Lgt. Regenerative Plating | -6/Data Miner | Free Cld. Nuclear Pulse Thruster | -6/Data Miner | Free Prc. Energy Filter | -6/Data Miner | Free Ionic Axe | -6/Data Miner | Free Imp. Antigrav System | -6/Data Miner | Free Adv. Power Amplifier | -6/Data Miner | Free Matter Neutralizer | -6/Data Miner | Free Disruptor Cannon | -6/Data Miner | Free Point Defense Array | -6/Data Miner | Free Hardcell Cannon | -6/Data Miner | Free Biometal Leg | -6/Data Miner | Free Robot Schematics ------------------ R-10 Processor | -6/Data Miner | Free G-50 Soldier | -6/Data Miner | Free S-27 Virus | -6/Data Miner | Free G-67 Veteran | -6/Data Miner | Free Fabricated ------------ Nothing Alien Tech Used ----------------- None Achievements -------------- None Challenges ------------ None Game ------ Seed ForceTractorWheel Manual? 0 Play Time 01:03:38 Cumulative 101.0 hours Start 2024.04.08 @ 18:48:42 End 2024.04.08 @ 21:56:47 Sessions 1 Manual Loads 0 Difficulty Rogue Special Mode None Game No. 151 Rogue 139 Adventurer 10 Explorer 2 Win Type - Total 1 Types 1/0/0/0/0/0/0/0/0 Lore% 28 Gallery% 57 Achievement% 41 Wizard Run 0 Options --------- Layout 0 ASCII 0 Keyboard 0 Movement Arrows Keybinds 0 Fullscreen 1 Font 36/Smallcaps Map View 76x50 Zoom Use 0% Tactical HUD 1 Map Filters NONE Filters NONE Steam 1 RUN: ea6fe647-e3db-4338-952a-885d91ed65ed